bitfinex/quotes_ETHUSD_20250905
["timestamp","ask_amount","ask_price","bid_price","bid_amount"]
[1757095532751,0.93610001,4294.8,4294.3,0.69988883]
[1757095533029,0.6381,4294.7,4294.3,0.69988883]
[1757095533400,0.2955,4294.4,4294.3,3.02855647]
[1757095533592,0.2955,4294.4,4294.3,0.69988883]
[1757095533593,0.9351,4294.4,4294.3,0.69988883]
[1757095534023,0.9351,4294.4,4294.3,3.02855706]
[1757095534226,0.9351,4294.4,4294.3,0.69988883]
[1757095534805,0.9351,4294.4,4294.3,3.02855706]
[1757095535227,0.788,4294.4,4294.3,3.02855706]
[1757095535428,0.00100001,4294.8,4294.3,1.54342054]
[1757095535629,0.00100001,4294.8,4294.7,2.32845134]
[1757095535831,0.49350001,4294.8,4294.7,2.32845134]
[1757095536028,0.10000001,4294.8,4294.7,2.32845134]
[1757095536258,0.00100001,4294.8,4294.7,8.91611691]
[1757095536399,0.00100001,4294.8,4294.7,9.22391691]
[1757095536744,0.00100001,4294.8,4294.7,11.22795986]
[1757095536942,0.00100001,4294.8,4294.7,15.13795986]
[1757095537917,0.00100001,4294.8,4294.7,14.37235986]
[1757095538135,0.00100001,4294.8,4294.7,12.82611691]
[1757095539648,0.00100001,4294.8,4294.7,13.14241691]
[1757095539831,0.00100001,4294.8,4294.7,13.60201691]
[1757095541726,0.00100001,4294.8,4294.7,14.10031691]
[1757095542122,0.00100001,4294.8,4294.7,17.10031691]
[1757095542552,0.00100001,4294.8,4294.7,19.83559986]
[1757095542849,0.00100001,4294.8,4294.7,19.95159986]
[1757095543148,0.00100001,4294.8,4294.7,20.04488768]
[1757095545431,0.00100001,4294.8,4294.7,21.20405107]
[1757095546020,0.00100001,4294.8,4294.7,21.37887699]
[1757095549971,0.00100001,4294.8,4294.7,16.01985107]
[1757095550259,0.00100001,4294.8,4294.7,20.24315107]
[1757095550636,0.00100001,4294.8,4294.7,20.70275107]
[1757095550841,0.00100001,4294.8,4294.7,15.22785107]
[1757095551037,0.10000001,4294.8,4294.7,11.29473429]
[1757095551238,0.00100001,4294.8,4294.7,19.04156325]
[1757095551440,0.00100001,4294.8,4294.7,20.31576325]
[1757095552436,0.00100001,4294.8,4294.7,19.81746325]
[1757095554469,0.00100001,4294.8,4294.7,15.91046325]
[1757095554632,0.00100001,4294.8,4294.7,12.06963429]
[1757095554833,0.00100001,4294.8,4294.7,19.81646325]
[1757095557706,0.00100001,4294.8,4294.7,20.31476325]
[1757095558344,0.00100001,4294.8,4294.7,24.51076324]
[1757095559078,0.00100001,4294.8,4294.7,25.30276324]
[1757095559302,0.001,4294.8,4294.7,25.30276324]
[1757095559461,0.001,4295.5,4295.4,2.32807189]
[1757095559790,0.001,4295.5,4295.4,18.19718154]
[1757095559988,0.001,4295.5,4295.4,18.94980083]
[1757095560188,0.001,4295.5,4295.4,19.06580083]
[1757095560885,0.001,4295.5,4295.4,18.28990083]
[1757095561073,0.001,4295.5,4295.4,20.5578088]
[1757095561586,0.1,4295.5,4295.4,8.90697984]
[1757095561760,0.1,4295.5,4295.4,12.81097984]
[1757095561962,0.001,4295.5,4295.4,12.81097984]
[1757095562494,0.1,4295.5,4295.4,12.81097984]
[1757095563180,0.001,4295.5,4295.4,13.12727984]
[1757095563379,0.001,4295.5,4295.4,13.58687984]
[1757095565113,0.001,4295.5,4295.4,13.12727984]
[1757095565672,0.8039,4295.5,4295.4,12.81097984]
[1757095565905,0.9364,4295.5,4295.4,6.34607189]
[1757095566071,0.9364,4295.5,4295.4,2.44407189]
[1757095568684,0.8039,4295.5,4295.4,2.44407189]
[1757095569086,0.001,4295.5,4295.4,2.76037189]
[1757095569291,0.001,4295.5,4295.4,3.2250526]
[1757095569486,0.001,4295.5,4295.4,4.16427321]
[1757095569697,0.001,4295.5,4295.4,4.18755392]
[1757095570402,0.001,4295.5,4295.4,4.16427321]
[1757095570710,0.1,4295.5,4295.4,4.16427321]
[1757095570879,0.1,4295.5,4295.4,8.06727321]
[1757095571578,0.001,4295.5,4295.4,8.06727321]
[1757095571979,0.001,4295.5,4295.4,12.30687321]
[1757095573309,0.001,4295.5,4295.4,11.80817321]
[1757095573685,0.001,4295.5,4295.4,12.30687321]
[1757095574379,0.001,4295.5,4295.4,19.55500217]
[1757095574792,0.001,4295.5,4295.4,20.84570217]
[1757095574999,0.001,4295.9,4295.7,6.1199093]
[1757095575000,1e-08,4295.8,4295.7,6.1199093]
[1757095575194,1e-08,4295.8,4295.7,12.40681727]
[1757095575525,1e-08,4295.8,4295.7,13.14771727]
[1757095575677,1e-08,4295.8,4295.7,13.64641727]
[1757095576484,1e-08,4295.8,4295.7,20.45314623]
[1757095576699,1e-08,4295.8,4295.7,21.39324623]
[1757095578620,0.001,4296.0,4295.9,3.11980092]
[1757095578865,0.001,4296.0,4295.9,12.31798689]
[1757095578981,0.001,4296.0,4295.9,13.53430889]
[1757095579498,0.026,4296.8,4296.4,3.11953002]
[1757095579699,0.026,4296.8,4296.4,17.89135898]
[1757095579891,0.026,4296.8,4296.4,18.63225898]
[1757095580230,0.1,4296.5,4296.4,7.43502788]
[1757095580382,0.001,4296.5,4296.4,17.73555898]
[1757095580588,0.001,4296.5,4296.4,17.33585898]
[1757095580892,0.001,4296.5,4296.4,17.77725898]
[1757095581509,0.1,4296.5,4296.4,17.03635898]
[1757095581698,0.001,4296.5,4296.4,17.03635898]
[1757095581914,0.001,4296.5,4296.4,19.01792481]
[1757095582088,0.5541,4296.5,4296.4,7.30909585]
[1757095582287,0.5541,4296.5,4296.4,9.28853002]
[1757095583032,0.5541,4296.5,4296.4,5.32753002]
[1757095583231,0.8934,4296.5,4295.4,4.04303774]
[1757095583415,0.8934,4296.5,4296.1,2.32764306]
[1757095583416,0.4517,4296.4,4296.1,2.32764306]
[1757095583734,0.791,4296.4,4296.1,2.32764306]
[1757095584031,0.7958,4296.3,4296.2,2.32760531]
[1757095584216,0.8948,4296.3,4296.1,2.32768539]
[1757095584420,0.7934,4296.2,4296.0,2.32773939]
[1757095584626,0.8924,4296.1,4296.0,2.32774674]
[1757095584911,0.8924,4296.1,4295.6,2.32792031]
[1757095585129,0.791,4296.0,4294.8,0.029]
[1757095585332,2.32787488,4295.8,4294.8,0.029]
[1757095585531,0.1038,4295.4,4295.1,2.32822299]
[1757095585910,0.8924,4295.4,4294.8,2.35735042]
[1757095586156,0.8924,4295.4,4295.0,2.32827]
[1757095586664,0.8924,4295.4,4294.8,0.029]
[1757095586807,3.22047189,4295.4,4294.8,0.029]
[1757095587014,10.96947189,4295.4,4294.8,0.029]
[1757095590116,10.97047189,4295.4,4294.8,0.029]
[1757095590348,7.17847189,4295.4,4294.8,0.029]
[1757095594869,6.83957189,4295.4,4294.8,0.029]
[1757095595027,7.17647189,4295.4,4294.8,0.029]
[1757095595662,6.83957189,4295.4,4294.8,0.029]
[1757095596319,6.83957189,4295.4,4294.8,2.35735297]
[1757095596830,0.1038,4295.4,4294.9,0.02328342]
[1757095597055,2.565,4295.4,4295.3,0.3035]
[1757095597218,2.78,4295.4,4295.3,0.004]
[1757095597424,3.2317,4295.4,4295.3,0.004]
[1757095597853,2.78,4295.4,4295.3,0.004]
[1757095598451,2.681,4295.4,4295.3,0.004]
[1757095599464,2.681,4295.4,4295.3,2.33212609]
[1757095599648,2.681,4295.4,4295.3,2.63632609]
[1757095599853,2.681,4295.4,4295.3,3.08132609]
[1757095602971,2.681,4295.4,4295.3,4.04177808]
[1757095603172,2.681,4295.4,4295.3,3.56952609]
[1757095603560,2.681,4295.4,4295.3,3.08132609]
[1757095603896,2.681,4295.4,4295.3,2.63632609]
[1757095604250,2.681,4295.4,4295.3,3.08132609]
[1757095604445,0.19157787,4295.8,4295.7,2.3279093]
[1757095604779,4.13857787,4295.8,4295.7,2.3279093]
[1757095605176,0.19157787,4295.8,4295.7,2.6321093]
[1757095605362,0.19157787,4295.8,4295.7,4.24021732]
[1757095608080,0.19157787,4295.8,4295.7,7.26349641]
[1757095608257,1e-08,4295.8,4295.7,8.03221732]
[1757095609477,1e-08,4295.8,4295.7,14.61246105]
[1757095610179,1e-08,4295.8,4295.7,18.55746105]
[1757095610395,1e-08,4295.8,4295.7,18.44146105]
[1757095611566,1e-08,4295.8,4295.7,11.86121732]
[1757095613159,1e-08,4295.8,4295.7,8.06521732]
[1757095613488,1e-08,4295.8,4295.7,11.06521732]
[1757095613895,1e-08,4295.8,4295.7,11.85721732]
[1757095614985,1e-08,4295.8,4295.7,7.91621732]
[1757095615207,1e-08,4295.8,4295.7,11.85621732]
[1757095616268,1e-08,4295.8,4295.7,11.06321732]
[1757095616589,1e-08,4295.8,4295.7,10.13001732]
[1757095616795,1e-08,4295.8,4295.7,10.57501732]
[1757095617297,1e-08,4295.8,4295.7,11.06321732]
[1757095620295,1e-08,4295.8,4295.7,11.17921732]
[1757095620597,1e-08,4295.8,4295.7,11.97121732]
[1757095622001,0.001,4296.7,4296.4,2.32753002]
[1757095622002,1e-08,4296.5,4296.4,2.32753002]
[1757095622298,1e-08,4296.5,4296.4,10.05353002]
[1757095622498,1e-08,4296.5,4296.4,11.29093002]
[1757095622797,1e-08,4296.5,4296.4,11.38418152]
[1757095623503,0.001,4296.7,4296.4,11.38418152]
[1757095623504,0.001,4296.9,4296.8,3.11931334]
[1757095623713,0.001,4296.9,4296.8,10.89798752]
[1757095624001,0.001,4296.9,4296.8,12.13538752]
[1757095624582,0.001,4296.9,4296.8,11.64718752]
[1757095624813,0.001,4296.9,4296.8,12.13438752]
[1757095625477,0.025,4297.8,4297.2,3.11909671]
[1757095625680,0.025,4297.8,4297.2,10.05109671]
[1757095625873,0.025,4297.8,4297.2,11.28849671]
[1757095626067,1e-08,4297.8,4297.7,3.11882597]
[1757095626405,1e-08,4297.8,4297.7,26.7928469]
[1757095626596,1e-08,4297.8,4297.7,30.29815487]
[1757095626810,0.4841,4300.3,4299.7,2.32574365]
[1757095627093,0.4841,4300.3,4299.7,6.25674365]
[1757095627281,0.4841,4300.3,4299.7,9.25674365]
[1757095627679,0.5091,4300.8,4299.7,10.00594365]
[1757095627885,0.5091,4300.8,4299.7,11.77613918]
[1757095628398,1e-08,4299.8,4299.7,12.68524837]
[1757095629100,0.4841,4302.1,4301.7,2.32466234]
[1757095629480,0.4932,4302.7,4301.7,7.81060896]
[1757095629688,0.4932,4302.7,4301.7,9.52606234]
[1757095629988,0.025,4302.8,4301.7,11.69114195]
[1757095630710,0.025,4302.8,4302.7,2.32412206]
[1757095630880,0.025,4302.8,4302.7,6.26412206]
[1757095631079,0.124,4302.8,4302.7,6.26412206]
[1757095631380,0.6172,4302.8,4302.7,2.32412206]
[1757095631900,0.9589,4302.8,4302.6,3.941]
[1757095632080,0.4932,4302.7,4302.6,6.26517607]
[1757095632406,0.5946,4302.7,4301.7,4.3559553]
[1757095632605,0.5946,4302.7,4302.6,2.32417607]
[1757095632774,0.5946,4302.7,4302.6,6.26517607]
[1757095632979,0.5946,4302.7,4302.6,3.941]
[1757095633294,0.9339,4302.7,4302.6,3.941]
[1757095633510,0.025,4302.8,4302.6,3.941]
[1757095633816,0.025,4302.8,4302.7,6.01692206]
[1757095634191,1e-08,4302.8,4302.7,6.49422206]
[1757095634377,1e-08,4302.8,4302.7,7.75562206]
[1757095635074,1e-08,4302.8,4302.7,9.27512206]
[1757095635279,0.59220001,4302.8,4301.1,3.952]
[1757095635478,0.4932,4302.7,4301.3,2.32487852]
[1757095635709,0.4932,4302.7,4301.2,4.92194932]
[1757095635710,0.4932,4302.7,4302.4,2.32424253]
[1757095635883,1e-08,4302.8,4302.4,0.02324284]
[1757095636090,1e-08,4302.8,4302.7,2.62282206]
[1757095636306,1e-08,4302.8,4302.7,9.62806328]
[1757095636482,1e-08,4302.8,4302.7,10.55152206]
[1757095636812,1e-08,4302.8,4302.7,10.87412206]
[1757095636978,1e-08,4302.8,4302.7,11.34352206]
[1757095637187,1e-08,4302.8,4302.7,12.9216297]
[1757095637408,1e-08,4302.8,4302.7,29.66365063]
[1757095638052,0.4932,4305.3,4304.7,2.32304225]
[1757095638253,0.4932,4305.3,4304.7,6.30804225]
[1757095638558,0.025,4305.8,4304.7,9.30804225]
[1757095638859,0.4932,4305.5,4304.7,9.30804225]
[1757095639061,0.4932,4305.5,4304.7,10.65323203]
[1757095639270,0.025,4305.8,4304.7,11.59993203]
[1757095639454,0.025,4305.8,4304.7,11.12263203]
[1757095639652,0.29910001,4304.8,4304.7,2.32304225]
[1757095639854,0.09900001,4304.8,4304.7,2.32304225]
[1757095640036,0.09900001,4304.8,4304.7,6.31504225]
[1757095640236,1e-08,4304.8,4304.7,10.87514225]
[1757095640524,1e-08,4304.8,4304.7,11.35244225]
[1757095640832,1e-08,4304.8,4304.7,12.71999879]
[1757095641249,1e-08,4304.8,4304.7,12.73399879]
[1757095641871,1e-08,4304.8,4304.7,8.72799879]
[1757095642167,1e-08,4304.8,4304.7,12.73299879]
[1757095642373,0.46820001,4306.6,4306.4,2.32209414]
[1757095642550,0.141,4306.8,4306.4,4.007]
[1757095642881,0.025,4306.8,4306.7,2.32196345]
[1757095643177,0.025,4306.8,4306.6,4.007]
[1757095643344,0.099,4306.7,4306.6,4.007]
[1757095643548,0.025,4306.8,4305.2,1.712]
[1757095643855,0.025,4306.8,4306.2,2.32218699]
[1757095644067,0.3441,4306.7,4305.4,5.32264615]
[1757095644269,0.025,4306.8,4305.7,2.32250272]
[1757095644470,0.025,4306.8,4306.6,2.32201698]
[1757095644675,0.025,4306.8,4306.7,4.011]
[1757095644970,0.025,4306.8,4306.7,6.63166345]
[1757095645153,0.025,4306.8,4306.7,6.33796345]
[1757095645354,0.025,4306.8,4306.7,6.63666345]
[1757095645552,0.025,4306.8,4306.7,7.97106306]
[1757095645763,0.025,4306.8,4306.7,10.97106306]
[1757095646295,0.124,4306.8,4305.3,17.44842093]
[1757095646492,0.6172,4306.8,4305.6,0.4694]
[1757095646658,0.6172,4306.8,4305.3,3.7064]
[1757095646659,0.8349,4306.7,4306.2,2.32222139]
[1757095646859,0.1014,4306.3,4306.2,4.016]
[1757095647100,0.5946,4306.3,4306.2,4.016]
[1757095647282,0.9339,4306.3,4306.2,4.016]
[1757095647605,0.9339,4306.3,4305.3,0.7064]
[1757095647805,0.9339,4306.3,4305.5,2.32259139]
[1757095647806,0.4407,4306.3,4305.5,2.32259139]
[1757095648004,2.32246128,4305.8,4305.0,4.015]
[1757095648164,0.1038,4305.1,4304.9,2.32293433]
[1757095648358,0.1038,4305.1,4304.7,1.36755654]
[1757095648359,0.4932,4305.0,4304.7,5.38255654]
[1757095648562,1.712,4307.6,4304.7,5.38255654]
[1757095648563,0.1061,4304.8,4304.7,6.3380206]
[1757095648773,0.5993,4304.8,4304.4,2.32319666]
[1757095648954,0.5993,4304.8,4304.7,2.32304225]
[1757095649386,0.5993,4304.8,4304.7,6.33704225]
[1757095649568,0.5993,4304.8,4304.7,2.32304225]
[1757095649870,0.5993,4304.8,4304.6,4.013]
[1757095649871,0.4932,4305.3,4304.6,4.013]
[1757095650081,0.4932,4305.3,4304.9,2.32288865]
[1757095650279,0.4932,4305.3,4304.9,2.32289687]
[1757095650578,0.3346,4305.4,4304.6,4.013]
[1757095650579,0.1084,4305.0,4304.6,6.33609321]
[1757095650778,0.1084,4305.0,4304.9,2.32293433]
[1757095651180,0.1084,4305.0,4304.8,0.025]
[1757095651181,0.4407,4305.0,4304.8,0.025]
[1757095651361,0.3323,4304.9,4304.8,0.025]
[1757095651562,0.69832809,4306.5,4304.8,0.25980616]
[1757095651792,0.4932,4305.6,4305.4,2.32261395]
[1757095651962,0.5922,4305.5,4304.8,0.025]
[1757095652289,0.5922,4305.5,4304.8,4.043]
[1757095652500,0.5922,4305.5,4305.1,2.32281676]
[1757095652861,0.8349,4305.4,4304.8,4.043]
[1757095653075,0.1014,4304.9,4304.8,6.48198519]
[1757095653271,0.5946,4304.9,4304.8,0.141]
[1757095653464,0.9339,4304.9,4304.8,0.025]
[1757095653876,3.25683433,4304.9,4304.8,0.025]
[1757095654070,0.9339,4304.9,4304.8,0.025]
[1757095654274,3.25683433,4304.9,4304.8,0.025]
[1757095654677,0.9339,4304.9,4304.8,0.025]
[1757095654984,0.5946,4304.9,4304.8,0.025]
[1757095655171,0.9339,4304.9,4304.8,0.025]
[1757095655371,3.25683433,4304.9,4304.8,0.025]
[1757095655572,3.82640369,4304.9,4304.8,0.025]
[1757095656666,0.5946,4304.9,4304.8,0.025]
[1757095657202,2.91753433,4304.9,4304.8,0.025]
[1757095657898,3.25683433,4304.9,4304.8,0.025]
[1757095659375,2.91753433,4304.9,4304.8,0.025]
[1757095659697,7.28083433,4304.9,4304.8,0.025]
[1757095659900,0.1014,4304.9,4304.8,0.025]
[1757095660101,2.547,4305.0,4304.8,0.025]
[1757095660768,1.711,4305.2,4304.8,0.025]
[1757095660970,4.029,4305.1,4304.8,0.025]
[1757095661170,1.711,4305.2,4304.8,0.025]
[1757095661396,4.027,4305.1,4304.8,0.025]
[1757095661602,6.80933174,4305.1,4304.8,0.025]
[1757095661875,2.42193433,4304.9,4304.8,0.025]
[1757095662375,3.22313433,4304.9,4304.8,0.025]
[1757095663501,4.01513433,4304.9,4304.8,0.025]
[1757095663702,3.22313433,4304.9,4304.8,0.025]
[1757095664113,6.90943433,4304.9,4304.8,0.025]
[1757095664320,6.44993433,4304.9,4304.8,0.025]
[1757095664615,6.44993433,4304.9,4304.8,0.029]
[1757095664810,4.127,4304.9,4304.8,0.029]
[1757095665215,2.1705,4305.2,4304.8,0.3421]
[1757095665216,1.711,4305.2,4304.8,0.3421]
[1757095665434,4.031,4305.1,4305.0,2.32283899]
[1757095665583,4.031,4305.1,4305.0,3.07183899]
[1757095666209,1.711,4305.2,4305.0,0.749]
[1757095666419,4.033,4305.1,4305.0,0.749]
[1757095666625,4.033,4305.1,4304.8,0.029]
[1757095666792,4.033,4305.1,4304.8,0.4649]
[1757095667183,4.033,4305.1,4305.0,2.63598037]
[1757095667396,4.033,4305.1,4305.0,3.07188037]
[1757095667817,4.029,4305.1,4305.0,3.07186099]
[1757095668126,4.029,4305.1,4305.0,0.749]
[1757095668619,4.029,4305.1,4304.8,0.029]
[1757095669045,4.145,4305.1,4304.8,0.029]
[1757095669534,4.145,4305.1,4305.0,0.3131]
[1757095669842,4.145,4305.1,4305.0,2.63598037]
[1757095670419,4.145,4305.1,4305.0,0.3131]
[1757095670646,4.145,4305.1,4304.9,2.75882903]
[1757095671028,4.145,4305.1,4305.0,2.32288037]
[1757095671228,4.143,4305.1,4304.9,2.32291634]
[1757095671919,4.143,4305.1,4304.8,2.3519655]
[1757095672121,4.143,4305.1,4304.8,0.029]
[1757095672324,0.099,4304.9,4304.8,0.029]
[1757095672773,2.32293433,4304.9,4304.8,0.029]
[1757095672927,4.022,4304.9,4304.8,3.10098582]
[1757095673238,4.022,4304.9,4304.8,0.778]
[1757095673434,4.022,4304.9,4304.8,2.66508829]
[1757095673640,4.022,4304.9,4304.8,3.10098829]
[1757095673838,0.116,4305.0,4304.9,2.32293433]
[1757095674064,4.023,4305.1,4305.0,2.32288037]
[1757095674260,4.023,4305.1,4304.8,0.029]
[1757095674429,4.023,4305.1,4305.0,2.32288037]
[1757095674618,4.023,4305.1,4305.0,0.749]
[1757095674818,4.023,4305.1,4304.9,2.32290173]
[1757095675019,0.116,4305.2,4304.8,0.029]
[1757095675020,4.139,4305.2,4305.0,3.07188037]
[1757095675253,4.139,4305.2,4305.1,3.24092641]
[1757095675483,4.139,4305.2,4305.1,3.55402641]
[1757095675774,4.139,4305.2,4305.1,3.07182641]
[1757095676252,4.238,4305.2,4304.9,2.32293433]
[1757095676671,4.238,4305.2,4304.8,2.35196183]
[1757095676879,0.4595,4305.1,4304.8,0.029]
[1757095677239,0.1014,4304.9,4304.8,0.029]
[1757095677443,4.029,4304.9,4304.8,0.029]
[1757095677675,6.45093433,4304.9,4304.8,0.029]
[1757095677971,4.5875,4304.9,4304.8,0.029]
[1757095678341,6.91043433,4304.9,4304.8,0.029]
[1757095678541,4.5875,4304.9,4304.8,0.029]
[1757095678742,6.91043433,4304.9,4304.8,0.029]
[1757095680361,7.66270341,4304.9,4304.8,0.00499159]
[1757095680685,8.45470341,4304.9,4304.8,0.00499159]
[1757095681392,8.45170341,4304.9,4304.8,0.00499159]
[1757095683079,11.45170341,4304.9,4304.8,0.00499159]
[1757095685285,11.45170341,4304.9,4304.8,1e-08]
[1757095685686,3.792,4304.8,4304.3,1e-08]
[1757095685860,16.36047127,4304.4,4304.3,1e-08]
[1757095686184,23.48787127,4304.4,4304.3,1e-08]
[1757095686572,24.28667127,4304.4,4304.3,1e-08]
[1757095687287,0.792,4304.2,4303.8,1e-08]
[1757095687458,6.11547405,4303.9,4303.8,1e-08]
[1757095687657,3.11601403,4302.9,4301.8,0.029]
[1757095687883,8.85501403,4302.9,4302.0,0.4359]
[1757095688084,11.85501403,4302.9,4302.2,0.4359]
[1757095688285,7.03601403,4302.9,4301.9,0.4822]
[1757095688485,11.06301403,4302.9,4302.8,0.3381]
[1757095690093,7.03601403,4302.9,4302.8,0.3381]
[1757095690509,1.712,4302.9,4302.8,0.8116]
[1757095690686,5.737,4302.9,4302.8,1.279]
[1757095690883,5.737,4302.9,4302.8,0.3381]
[1757095691396,5.737,4302.9,4302.8,0.8055]
[1757095691862,5.737,4302.9,4302.8,1.279]
[1757095692062,5.737,4302.9,4302.8,0.8055]
[1757095692661,5.737,4302.9,4302.8,1.279]
[1757095692883,1.712,4302.9,4302.8,3.60306804]
[1757095693071,5.734,4302.9,4302.8,3.60306804]
[1757095693599,12.20361403,4302.9,4302.8,0.025]
[1757095694135,11.63241403,4302.9,4302.8,0.025]
[1757095694860,11.15801403,4302.9,4302.8,0.025]
[1757095695466,11.63121403,4302.9,4302.8,0.025]
[1757095698306,11.05901403,4302.9,4302.8,0.025]
[1757095699219,11.15801403,4302.9,4302.8,0.025]
[1757095699509,11.63121403,4302.9,4302.8,0.025]
[1757095699902,7.03601403,4302.9,4302.8,0.025]
[1757095700118,11.05301403,4302.9,4302.8,0.025]
[1757095700909,11.15441403,4302.9,4302.8,0.025]
[1757095702022,11.15441403,4302.9,4302.8,0.029]
[1757095702677,11.05301403,4302.9,4302.8,0.029]
[1757095703385,7.03601403,4302.9,4302.8,0.029]
[1757095703592,11.05001403,4302.9,4302.8,0.029]
[1757095704204,11.05001403,4302.9,4302.8,0.3387]
[1757095704623,4.712,4302.9,4302.8,0.3387]
[1757095704797,11.04801403,4302.9,4302.8,0.8061]
[1757095705321,8.724,4302.9,4302.8,0.8061]
[1757095705524,11.04801403,4302.9,4302.8,0.8061]
[1757095705680,11.04801403,4302.9,4302.8,0.3387]
[1757095706026,11.04801403,4302.9,4302.8,0.029]
[1757095706509,11.62021403,4302.9,4302.8,0.029]
[1757095707078,11.14701403,4302.9,4302.8,0.029]
[1757095707475,11.04801403,4302.9,4302.8,0.029]
[1757095707907,11.62021403,4302.9,4302.8,0.029]
[1757095708715,11.04801403,4302.9,4302.8,0.029]
[1757095708925,11.62261403,4302.9,4302.8,0.029]
[1757095710080,11.14941403,4302.9,4302.8,0.029]
[1757095710283,11.04801403,4302.9,4302.8,0.029]
[1757095714147,11.03501403,4302.9,4302.8,0.8061]
[1757095714519,4.03601403,4302.9,4302.8,0.8061]
[1757095714821,8.03601403,4302.9,4302.8,1.2796]
[1757095715126,8.03601403,4302.9,4302.8,0.8061]
[1757095715319,11.03601403,4302.9,4302.8,0.029]
[1757095716515,11.03601403,4302.9,4302.8,0.3387]
[1757095718009,11.03601403,4302.9,4302.8,0.8061]
[1757095721349,1.712,4302.9,4302.8,1.2997]
[1757095721649,5.704,4302.9,4302.8,1.2997]
[1757095722202,9.60579096,4302.9,4302.8,0.029]
[1757095722422,12.39570499,4302.9,4302.8,0.029]
[1757095722737,11.02901403,4302.9,4302.8,0.3188]
[1757095722933,11.02901403,4302.9,4302.8,0.7749]
[1757095723141,11.02801403,4302.9,4302.8,0.7749]
[1757095723327,1.712,4302.9,4302.8,1.2685]
[1757095723526,5.704,4302.9,4302.8,1.2685]
[1757095724038,5.704,4302.9,4302.8,3.59256804]
[1757095724655,1.712,4302.9,4302.8,3.59256804]
[1757095724935,5.704,4302.9,4302.8,4.1846393]
[1757095725337,3.0,4303.7,4303.2,2.32379846]
[1757095725543,5.354,4303.8,4303.6,0.2898]
[1757095725717,8.354,4303.8,4303.7,0.4561]
[1757095725927,12.345,4303.8,4303.7,0.7459]
[1757095726110,14.66852804,4303.8,4303.7,0.7459]
[1757095726512,12.345,4303.8,4303.7,0.7459]
[1757095727239,14.66852804,4303.8,4303.7,0.2898]
[1757095727413,12.345,4303.8,4303.7,0.2898]
[1757095727841,9.31552804,4303.8,4303.7,0.2898]
[1757095728449,9.31552804,4303.8,4303.2,0.4561]
[1757095728450,3.0,4303.7,4303.2,0.4561]
[1757095728752,6.992,4303.8,4303.2,0.4561]
[1757095728753,2.32369043,4303.5,4303.2,0.4561]
[1757095729042,3.987,4303.4,4303.3,0.4561]
[1757095729213,3.987,4303.4,4303.1,2.3238915]
[1757095729412,3.987,4303.4,4303.3,0.2898]
[1757095729614,6.31074401,4303.4,4302.9,0.4936]
[1757095729831,3.987,4303.4,4303.0,0.4561]
[1757095730043,3.987,4303.4,4302.8,0.029]
[1757095730044,3.987,4303.4,4303.3,0.2898]
[1757095730249,3.987,4303.4,4303.3,1.2395]
[1757095730742,3.986,4303.4,4303.3,1.2395]
[1757095731132,2.32455496,4303.8,4303.3,1.2395]
[1757095731336,3.985,4303.7,4303.4,0.9497]
[1757095731842,6.985,4303.7,4303.6,0.2898]
[1757095732042,6.985,4303.7,4303.6,0.7459]
[1757095732442,2.43964969,4303.6,4303.3,0.4561]
[1757095732648,3.986,4303.5,4303.4,0.4561]
[1757095733044,6.30969001,4303.5,4302.9,2.81758639]
[1757095733344,0.116,4303.3,4303.0,0.4561]
[1757095733554,3.984,4303.2,4303.1,3.27360602]
[1757095733854,3.984,4303.2,4303.1,0.7459]
[1757095737254,3.984,4303.2,4302.8,0.5226]
[1757095737255,7.51514635,4303.2,4302.8,0.029]
[1757095737556,2.44001403,4302.9,4302.8,0.029]
[1757095737756,6.42101403,4302.9,4302.8,0.029]
[1757095738357,6.70951403,4302.9,4302.8,0.029]
[1757095740357,10.17541403,4302.9,4302.8,0.029]
[1757095740558,10.64563001,4302.9,4302.8,0.029]
[1757095741056,9.89123001,4302.9,4302.8,0.029]
[1757095741424,6.978,4302.9,4302.8,0.7749]
[1757095741720,6.978,4302.9,4302.8,1.2685]
[1757095741721,9.30201403,4302.9,4302.8,1.2685]
[1757095741944,9.30401403,4302.9,4302.8,1.2685]
[1757095742452,6.98,4302.9,4302.8,1.2685]
[1757095742828,9.30401403,4302.9,4302.8,1.2685]
[1757095743035,9.30401403,4302.9,4302.8,0.7749]
[1757095743239,6.98,4302.9,4302.8,0.7749]
[1757095743555,6.98,4302.9,4302.8,1.2685]
[1757095744570,9.30401403,4302.9,4302.8,0.029]
[1757095744725,6.98,4302.9,4302.8,0.7749]
[1757095744929,6.977,4302.9,4302.8,1.2685]
[1757095745348,3.977,4302.9,4302.8,1.2685]
[1757095745867,3.977,4302.9,4302.8,0.7749]
[1757095746054,6.79771403,4302.9,4302.8,0.029]
[1757095746547,6.69871403,4302.9,4302.8,0.029]
[1757095747447,6.80011403,4302.9,4302.8,0.029]
[1757095748838,10.26601403,4302.9,4302.8,0.029]
[1757095749170,11.39731403,4302.9,4302.8,0.029]
[1757095749373,11.39731403,4302.9,4302.8,1e-08]
[1757095749529,3.11612206,4302.7,4302.6,0.004]
[1757095749730,12.51801359,4302.7,4302.6,0.004]
[1757095749924,13.41341359,4302.7,4302.6,0.004]
[1757095753283,13.26341359,4302.7,4302.6,0.004]
[1757095755080,13.41341359,4302.7,4302.6,0.004]
[1757095755477,13.41341359,4302.7,4302.3,0.004]
[1757095755478,3.11628412,4302.4,4302.3,0.004]
[1757095755659,16.65385236,4302.4,4302.3,0.004]
[1757095755858,17.39775236,4302.4,4302.3,0.004]